bitfinex/quotes_BTCUSD_20240627
["timestamp","ask_amount","ask_price","bid_price","bid_amount"]
[1719497551347,6.089626,62417.0,62416.0,0.064198]
[1719497551644,6.089526,62417.0,62416.0,0.064198]
[1719497552263,1.141578,62412.0,62411.0,0.08130346]
[1719497552468,3.853481,62412.0,62411.0,0.24364244]
[1719497552616,3.865899,62412.0,62411.0,0.24364244]
[1719497552839,2.744221,62412.0,62396.0,0.4657]
[1719497553044,0.801292,62399.0,62395.0,0.06422]
[1719497553401,2.028447,62399.0,62391.0,0.65980346]
[1719497553526,1.749603,62399.0,62391.0,0.65980346]
[1719497554238,0.788052,62399.0,62392.0,0.00320524]
[1719497554581,1.037307,62399.0,62391.0,0.65980346]
[1719497554813,0.765185,62399.0,62391.0,0.65980346]
[1719497554940,0.24841,62399.0,62392.0,0.00320509]
[1719497555149,0.1,62399.0,62391.0,0.82890346]
[1719497555405,0.260258,62399.0,62391.0,1.02890346]
[1719497555571,0.1,62399.0,62391.0,1.02890346]
[1719497555936,0.260257,62400.0,62391.0,0.65980346]
[1719497556070,0.480675,62399.0,62398.0,0.08230346]
[1719497556290,0.801192,62399.0,62398.0,0.08230346]
[1719497556509,0.901192,62399.0,62398.0,0.08130346]
[1719497556909,0.160276,62392.0,62391.0,0.65980346]
[1719497557113,0.260276,62392.0,62391.0,0.82214244]
[1719497557913,0.901382,62392.0,62391.0,0.24364244]
[1719497558190,0.921282,62392.0,62391.0,0.16233898]
[1719497558393,0.1603,62383.0,62382.0,0.000924]
[1719497558565,0.4809,62383.0,62382.0,0.16326298]
[1719497558761,1.463213,62383.0,62382.0,0.16326298]
[1719497558918,1.59884,62383.0,62382.0,0.16326298]
[1719497559823,1.59884,62383.0,62382.0,0.000924]
[1719497560267,1.91944,62383.0,62382.0,0.000924]
[1719497560429,1.92100024,62383.0,62382.0,0.000924]
[1719497560629,1.91934,62383.0,62382.0,0.000924]
[1719497560845,1.59874,62383.0,62382.0,0.16326298]
[1719497561437,1.59874,62383.0,62382.0,0.16826298]
[1719497562036,1.59874,62383.0,62382.0,0.000924]
[1719497562428,1.92123267,62383.0,62382.0,0.000924]
[1719497563011,1.92113267,62383.0,62382.0,0.000924]
[1719497563379,1.60053267,62383.0,62382.0,0.000924]
[1719497563779,1.92713267,62383.0,62382.0,0.001924]
[1719497563929,1.64433841,62383.0,62382.0,0.001924]
[1719497564136,2.29553841,62383.0,62382.0,0.001924]
[1719497564367,2.29553841,62383.0,62382.0,0.002924]
[1719497564368,2.17259841,62383.0,62382.0,0.002924]
[1719497564691,2.16659841,62383.0,62382.0,0.001924]
[1719497565020,2.16859841,62383.0,62382.0,0.001924]
[1719497565225,2.16849841,62383.0,62382.0,0.001924]
[1719497565427,2.17949841,62383.0,62382.0,0.002924]
[1719497565885,1.89280041,62383.0,62382.0,0.002924]
[1719497566109,1.84689058,62383.0,62382.0,0.002924]
[1719497566298,2.13399058,62383.0,62382.0,0.002924]
[1719497566506,2.14399058,62383.0,62382.0,0.002924]
[1719497566722,2.14599841,62383.0,62382.0,0.002924]
[1719497566884,2.46459058,62383.0,62382.0,0.002924]
[1719497567065,2.51050041,62383.0,62382.0,0.002924]
[1719497567266,2.49750041,62383.0,62382.0,0.001924]
[1719497567489,2.48650041,62383.0,62382.0,0.000924]
[1719497567709,2.10999058,62383.0,62382.0,0.000924]
[1719497567863,1.80239058,62383.0,62382.0,0.001924]
[1719497568606,1.55959058,62383.0,62382.0,0.001924]
[1719497568804,1.57949058,62383.0,62382.0,0.001924]
[1719497569247,0.91839058,62383.0,62382.0,0.16426298]
[1719497569400,0.013,62383.0,62382.0,0.16426298]
[1719497569616,0.0129,62383.0,62382.0,0.16426298]
[1719497569887,0.1732,62383.0,62382.0,0.16426298]
[1719497570166,0.0129,62383.0,62382.0,0.16426298]
[1719497570318,0.4938,62383.0,62382.0,0.16426298]
[1719497571063,0.4918,62383.0,62382.0,0.16426298]
[1719497571274,0.111,62383.0,62382.0,0.16426298]
[1719497571481,0.1,62383.0,62382.0,0.16326298]
[1719497571712,0.0199,62393.0,62382.0,0.16326298]
[1719497571844,0.0199,62393.0,62386.0,0.16233898]
[1719497572046,0.320559,62392.0,62386.0,0.16233898]
[1719497572244,0.160281,62391.0,62386.0,0.16233898]
[1719497572449,0.160289,62387.0,62386.0,0.16233898]
[1719497572842,0.160287,62388.0,62386.0,0.16233898]
[1719497573043,0.320566,62390.0,62386.0,0.16233898]
[1719497573044,0.1,62387.0,62386.0,0.16233898]
[1719497573240,0.1,62389.0,62386.0,0.16233898]
[1719497573507,0.160289,62387.0,62386.0,0.16233898]
[1719497573683,0.1,62387.0,62386.0,0.16233898]
[1719497573886,0.320558,62392.0,62386.0,0.16233898]
[1719497573887,0.160274,62393.0,62386.0,0.16233898]
[1719497574104,0.320535,62396.0,62392.0,0.08130346]
[1719497574276,0.160274,62393.0,62392.0,0.08130346]
[1719497574462,0.160274,62393.0,62392.0,0.24364244]
[1719497574659,0.320509,62401.0,62392.0,0.82134244]
[1719497574895,0.480762,62401.0,62400.0,0.08130346]
[1719497575098,0.0199,62406.0,62400.0,0.08130346]
[1719497575343,0.160253,62401.0,62400.0,0.08130346]
[1719497575635,0.160251,62402.0,62400.0,0.08130346]
[1719497576113,0.160251,62402.0,62401.0,0.16233898]
[1719497576290,0.480753,62402.0,62401.0,0.16233898]
[1719497576494,0.801255,62402.0,62401.0,0.16233898]
[1719497576694,0.821155,62402.0,62401.0,0.16233898]
[1719497576995,0.480753,62402.0,62401.0,0.16233898]
[1719497577172,0.600653,62402.0,62401.0,0.16233898]
[1719497577377,0.921155,62402.0,62401.0,0.16233898]
[1719497578086,0.580753,62402.0,62401.0,0.16233898]
[1719497578419,0.901255,62402.0,62401.0,0.16233898]
[1719497578620,0.580753,62402.0,62401.0,0.16233898]
[1719497579203,0.1,62402.0,62401.0,0.16233898]
[1719497579405,0.012,62402.0,62401.0,0.16333898]
[1719497579724,0.492753,62402.0,62401.0,0.16333898]
[1719497579934,0.592753,62402.0,62401.0,0.16333898]
[1719497580938,0.112,62402.0,62401.0,0.16333898]
[1719497581155,0.016,62402.0,62401.0,0.72463898]
[1719497581326,0.0199,62426.0,62407.0,0.5613]
[1719497581527,0.64803074,62418.0,62412.0,0.24364244]
[1719497581736,0.16021,62418.0,62412.0,0.24364244]
[1719497582166,0.16021,62418.0,62413.0,0.545]
[1719497582468,0.16021,62418.0,62414.0,0.16233898]
[1719497583048,0.160213,62417.0,62414.0,0.16233898]
[1719497584063,0.160213,62417.0,62414.0,0.16333898]
[1719497584281,0.004,62418.0,62416.0,0.16233898]
[1719497584454,0.1602,62422.0,62417.0,0.16233898]
[1719497584791,0.1602,62422.0,62418.0,0.16233898]
[1719497585338,0.320382,62426.0,62418.0,0.16233898]
[1719497585552,0.320397,62423.0,62418.0,0.16233898]
[1719497585748,0.801877,62419.0,62418.0,0.16233898]
[1719497586173,0.821777,62419.0,62418.0,0.16233898]
[1719497586371,1.141422,62415.0,62414.0,0.001]
[1719497586674,0.160246,62404.0,62403.0,0.3011]
[1719497586860,0.320435,62415.0,62389.0,0.264227]
[1719497586861,0.160266,62396.0,62395.0,0.5482]
[1719497587170,0.0199,62400.0,62391.0,0.2562]
[1719497587171,0.480829,62392.0,62391.0,0.2562]
[1719497587459,0.901382,62392.0,62391.0,0.2562]
[1719497587765,0.1,62392.0,62391.0,0.41853898]
[1719497587959,0.1,62392.0,62391.0,0.58763898]
[1719497588564,0.0199,62406.0,62391.0,0.58763898]
[1719497588565,0.1,62399.0,62391.0,0.58763898]
[1719497588739,0.1,62399.0,62398.0,0.16233898]
[1719497589665,0.0999,62399.0,62398.0,0.16233898]
[1719497589871,0.0999,62399.0,62398.0,0.48893898]
[1719497590052,0.160257,62400.0,62398.0,0.48893898]
[1719497590624,0.160246,62404.0,62399.0,0.2592]
[1719497590837,0.160246,62404.0,62400.0,0.16233898]
[1719497591137,0.160248,62403.0,62400.0,0.16233898]
[1719497591880,0.0999,62402.0,62400.0,0.16233898]
[1719497592025,0.0999,62402.0,62400.0,0.14581192]
[1719497592428,0.260151,62402.0,62400.0,0.14581192]
[1719497593050,0.280051,62402.0,62400.0,0.14581192]
[1719497593389,0.260151,62402.0,62400.0,0.14581192]
[1719497593807,0.1009,62402.0,62401.0,0.16233898]
[1719497594010,0.001,62402.0,62401.0,0.16233898]
[1719497594340,0.161251,62402.0,62401.0,0.16233898]
[1719497594518,0.261251,62402.0,62401.0,0.16233898]
[1719497594747,0.581753,62402.0,62401.0,0.16233898]
[1719497595600,0.902255,62402.0,62401.0,0.16233898]
[1719497596204,1.242657,62402.0,62401.0,0.16233898]
[1719497596547,1.222757,62402.0,62401.0,0.16433898]
[1719497596828,0.902255,62402.0,62401.0,0.16233898]
[1719497597001,0.581753,62402.0,62401.0,0.16233898]
[1719497597202,0.902255,62402.0,62401.0,0.16333898]
[1719497597607,0.901255,62402.0,62401.0,0.16333898]
[1719497597795,0.901255,62402.0,62401.0,0.16233898]
[1719497598008,0.901255,62402.0,62401.0,0.16333898]
[1719497598237,0.901255,62402.0,62401.0,0.73173898]
[1719497598238,0.101,62402.0,62401.0,0.73173898]
[1719497598668,0.1,62402.0,62401.0,0.73173898]
[1719497599001,0.1,62402.0,62401.0,0.74273898]
[1719497599002,0.101,62402.0,62401.0,0.74273898]
[1719497599544,0.101,62402.0,62401.0,0.74173898]
[1719497599717,0.001,62402.0,62401.0,0.74173898]
[1719497599938,0.001,62402.0,62401.0,0.74273898]
[1719497600444,0.001,62402.0,62401.0,0.17333898]
[1719497600868,0.001,62402.0,62401.0,0.73733898]
[1719497600995,0.001,62402.0,62401.0,0.76033898]
[1719497601409,0.1,62409.0,62401.0,0.74733898]
[1719497601664,0.801177,62408.0,62407.0,0.16233898]
[1719497601822,0.580706,62408.0,62407.0,0.16233898]
[1719497603207,0.260235,62408.0,62407.0,0.16233898]
[1719497603447,0.580706,62408.0,62407.0,0.16233898]
[1719497604783,0.580706,62408.0,62407.0,0.16633898]
[1719497605498,0.600606,62408.0,62407.0,0.16633898]
[1719497605839,0.580706,62408.0,62407.0,0.16633898]
[1719497607265,0.260235,62408.0,62407.0,0.16633898]
[1719497608363,0.580706,62408.0,62407.0,0.17233898]
[1719497608800,0.57220089,62408.0,62407.0,0.16233898]
[1719497609106,0.57320089,62408.0,62407.0,0.17033898]
[1719497609466,0.57320089,62408.0,62407.0,0.07033898]
[1719497609801,0.57820089,62408.0,62407.0,0.07033898]
[1719497611350,0.57320089,62408.0,62407.0,0.07033898]
[1719497611768,0.57420089,62408.0,62407.0,0.07033898]
[1719497613285,0.102,62408.0,62407.0,0.07033898]
[1719497614350,0.102,62408.0,62407.0,0.64843898]
[1719497614506,0.002,62408.0,62407.0,0.67143898]
[1719497617276,0.162235,62408.0,62407.0,0.38693898]
[1719497617478,0.582706,62408.0,62407.0,0.38693898]
[1719497617849,0.262235,62408.0,62407.0,0.38693898]
[1719497618057,0.582706,62408.0,62407.0,0.38693898]
[1719497618656,0.102,62408.0,62407.0,0.38693898]
[1719497620123,0.002,62408.0,62407.0,0.38693898]
[1719497620832,0.002,62408.0,62407.0,0.58693898]
[1719497621191,0.002,62408.0,62407.0,0.40993898]
[1719497622099,0.002,62408.0,62407.0,0.60993898]
[1719497622588,0.002,62408.0,62407.0,0.40993898]
[1719497625164,0.002,62408.0,62407.0,0.60993898]
[1719497625385,0.002,62408.0,62407.0,0.40993898]
[1719497625603,0.002,62408.0,62407.0,0.60993898]
[1719497625770,0.002,62408.0,62407.0,1.24253898]
[1719497625977,0.002,62408.0,62407.0,1.60277698]
[1719497626333,0.00084,62419.0,62418.0,0.5782]
[1719497626525,0.00084,62419.0,62418.0,0.76353898]
[1719497626754,0.00084,62419.0,62418.0,0.96353898]
[1719497626911,0.00084,62419.0,62418.0,0.76353898]
[1719497627067,0.00084,62419.0,62418.0,0.38533898]
[1719497627287,0.160235,62408.0,62396.0,0.2]
[1719497627492,0.480706,62408.0,62407.0,0.18133898]
[1719497628331,0.580706,62408.0,62407.0,0.18133898]
[1719497629006,0.1,62408.0,62407.0,0.17033898]
[1719497629404,0.260233,62409.0,62407.0,0.17033898]
[1719497629646,0.1,62409.0,62408.0,0.16233898]
[1719497629846,0.16022,62414.0,62408.0,0.16233898]
[1719497630049,0.1,62413.0,62408.0,0.16233898]
[1719497630405,0.480684,62411.0,62410.0,0.16233898]
[1719497630739,0.390028,62411.0,62410.0,0.16233898]
[1719497630917,0.810484,62411.0,62410.0,0.16233898]
[1719497631365,1.13094,62411.0,62410.0,0.16233898]
[1719497632108,1.15084,62411.0,62410.0,0.16233898]
[1719497632652,1.471296,62411.0,62410.0,0.16233898]
[1719497633007,1.476296,62411.0,62410.0,0.16233898]
[1719497633377,1.456396,62411.0,62410.0,0.16233898]
[1719497633549,1.451396,62411.0,62410.0,0.16233898]
[1719497633974,1.471296,62411.0,62410.0,0.16233898]
[1719497634268,1.471296,62411.0,62405.0,0.08130346]
[1719497634269,1.141587,62406.0,62405.0,0.08130346]
[1719497634480,1.471387,62406.0,62405.0,0.24364244]
[1719497636011,1.121757,62402.0,62401.0,0.000924]
[1719497636206,1.403057,62402.0,62401.0,0.16326298]
[1719497636492,1.482557,62402.0,62401.0,0.16326298]
[1719497637446,2.123561,62402.0,62401.0,0.000924]
[1719497637664,2.134561,62402.0,62401.0,0.000924]
[1719497637863,2.124561,62402.0,62401.0,0.000924]
[1719497638064,2.134561,62402.0,62401.0,0.000924]
[1719497638291,2.124561,62402.0,62401.0,0.000924]
[1719497638535,2.123561,62402.0,62401.0,0.000924]
[1719497638754,2.133561,62402.0,62401.0,0.000924]
[1719497639080,2.26538079,62402.0,62401.0,0.000924]
[1719497639524,2.133561,62402.0,62401.0,0.000924]
[1719497639936,1.703383,62388.0,62387.0,0.08130346]
[1719497640096,2.033183,62388.0,62387.0,0.08130346]
[1719497641443,1.222009,62388.0,62387.0,0.24364244]
[1719497641634,1.471709,62388.0,62387.0,0.24364244]
[1719497642274,1.455218,62388.0,62387.0,0.24364244]
[1719497643329,1.455218,62388.0,62387.0,0.08130346]
[1719497643537,1.467218,62388.0,62387.0,0.08230346]
[1719497643834,1.467218,62388.0,62387.0,0.08130346]
[1719497644034,1.455218,62388.0,62387.0,0.08130346]
[1719497644170,0.57537,62388.0,62387.0,0.24464244]
[1719497644371,0.2408,62388.0,62387.0,0.56624244]
[1719497644631,0.2408,62388.0,62387.0,0.58924244]
[1719497644807,0.2298,62388.0,62387.0,0.58824244]
[1719497644986,0.2298,62388.0,62387.0,0.84084244]
[1719497645345,0.2418,62388.0,62387.0,0.84184244]
[1719497645485,0.2418,62388.0,62387.0,0.84284244]
[1719497646219,0.0119,62388.0,62387.0,1.04284244]
[1719497646404,0.2417,62388.0,62387.0,1.44284244]
[1719497646609,0.2417,62388.0,62387.0,1.24284244]
[1719497646808,0.2417,62388.0,62387.0,1.04284244]
[1719497647348,0.2298,62388.0,62387.0,1.24184244]
[1719497647547,0.2308,62388.0,62387.0,1.04184244]
[1719497647749,0.3308,62388.0,62387.0,0.81884244]
[1719497647927,1.452809,62388.0,62387.0,0.16333898]
[1719497648128,0.811661,62388.0,62387.0,0.16333898]
[1719497648331,0.811661,62388.0,62387.0,0.08918463]
[1719497648663,0.581861,62388.0,62387.0,0.08918463]
[1719497648813,1.189935,62388.0,62387.0,0.08818463]
[1719497648999,1.209835,62388.0,62387.0,0.08818463]
[1719497649199,0.8214,62383.0,62382.0,0.001024]
[1719497649398,0.9015,62383.0,62382.0,0.16336298]
[1719497649650,1.242,62383.0,62382.0,0.16336298]
[1719497649845,1.2221,62383.0,62382.0,0.16336298]
[1719497650696,0.1,62383.0,62382.0,0.16336298]
[1719497650902,0.160298,62384.0,62382.0,0.16336298]
[1719497651050,0.160298,62384.0,62383.0,0.16233898]
[1719497651349,0.260298,62384.0,62383.0,0.16233898]
[1719497652155,0.260198,62384.0,62383.0,0.16633898]
[1719497653462,0.0999,62384.0,62383.0,0.16633898]
[1719497654966,0.0999,62384.0,62383.0,0.16233898]
[1719497655169,0.160295,62385.0,62383.0,0.16233898]
[1719497655367,0.160295,62385.0,62383.0,0.16333898]
[1719497655569,0.1,62384.0,62383.0,0.17633898]
[1719497655776,0.260295,62385.0,62383.0,0.17633898]
[1719497656009,0.2876,62388.0,62384.0,0.5808]
[1719497656216,0.2876,62388.0,62387.0,0.24364244]
[1719497656386,0.2876,62395.0,62387.0,0.46664244]
[1719497656671,0.2876,62395.0,62394.0,0.08130346]
[1719497656880,0.2876,62395.0,62394.0,0.24364244]
[1719497657058,0.608138,62395.0,62394.0,0.16233898]
[1719497657258,1.429383,62395.0,62394.0,0.16233898]
[1719497657458,1.409483,62395.0,62394.0,0.16233898]
[1719497658162,1.418483,62395.0,62394.0,0.16333898]
[1719497658366,1.438383,62395.0,62394.0,0.16333898]
[1719497658566,1.538383,62395.0,62394.0,0.16333898]
[1719497658788,1.529383,62395.0,62394.0,0.16233898]
[1719497659391,1.529383,62395.0,62394.0,0.16208563]
[1719497660031,1.509483,62395.0,62394.0,0.16208563]
[1719497660236,0.3966,62395.0,62394.0,0.16308563]
[1719497660449,0.3966,62395.0,62394.0,0.74728563]
[1719497662882,1.538383,62395.0,62394.0,0.16308563]
[1719497663295,1.518483,62395.0,62394.0,0.16308563]
[1719497663533,1.197945,62395.0,62394.0,0.16308563]
[1719497663749,0.3966,62395.0,62394.0,0.16308563]
[1719497663891,0.3966,62395.0,62394.0,0.48008563]
[1719497664602,0.3876,62395.0,62394.0,0.47908563]
[1719497664807,0.3906,62395.0,62394.0,0.47918563]
[1719497665154,0.3906,62395.0,62394.0,0.48518563]
[1719497667180,0.3906,62395.0,62394.0,0.74368563]
[1719497667380,0.3906,62395.0,62394.0,0.76668563]
[1719497670602,0.1029566,62395.0,62394.0,0.76668563]
[1719497670805,0.233,62395.0,62394.0,0.76668563]
[1719497671661,0.07930212,62398.0,62394.0,0.76668563]
[1719497671862,0.23,62395.0,62394.0,0.76668563]
[1719497672268,0.18669429,62398.0,62394.0,0.76668563]
[1719497672480,0.23,62395.0,62394.0,0.76668563]
[1719497673499,0.23,62395.0,62394.0,0.76768563]
[1719497674247,0.23,62395.0,62394.0,1.16668563]
[1719497674454,0.23,62406.0,62400.0,0.5532]
[1719497674660,0.23,62406.0,62403.0,0.16233898]
[1719497676340,0.1,62405.0,62403.0,0.16233898]
[1719497677376,0.1,62405.0,62404.0,0.16233898]
[1719497677607,0.1,62405.0,62404.0,0.74443898]
[1719497677813,0.23,62405.0,62404.0,0.74443898]
[1719497678011,0.33,62405.0,62404.0,0.74443898]
[1719497679053,0.33,62405.0,62404.0,0.72143898]
[1719497680476,0.33,62405.0,62404.0,0.72243898]
[1719497680829,0.33,62405.0,62404.0,0.72143898]
[1719497681235,0.33,62405.0,62404.0,0.72243898]
[1719497681933,0.490243,62405.0,62404.0,0.47723898]
[1719497682093,0.490243,62405.0,62404.0,0.16333898]
[1719497682832,0.33,62405.0,62404.0,0.16333898]
[1719497683399,0.81073,62405.0,62404.0,0.16333898]
[1719497683618,1.241604,62405.0,62404.0,0.16333898]
[1719497683815,1.452544,62405.0,62404.0,0.16333898]
[1719497684355,1.132057,62405.0,62404.0,0.16333898]
[1719497684554,0.33084,62405.0,62404.0,0.16333898]
[1719497684852,0.491083,62405.0,62404.0,0.16333898]
[1719497685560,0.491083,62405.0,62404.0,0.17333898]
[1719497685940,0.10084,62405.0,62404.0,0.17333898]
[1719497686142,0.33084,62405.0,62404.0,0.17333898]
[1719497686320,0.33084,62405.0,62404.0,0.17233898]
[1719497686517,0.33084,62405.0,62404.0,0.16233898]
[1719497686781,0.33284,62405.0,62404.0,0.16233898]
[1719497687152,0.10084,62405.0,62404.0,0.75043898]
[1719497687360,0.00084,62405.0,62404.0,1.06074244]
[1719497687764,0.00084,62405.0,62404.0,2.43097244]
[1719497687929,0.00084,62405.0,62404.0,2.11048044]
[1719497688555,0.00084,62419.0,62418.0,1.31691]
[1719497688767,0.00084,62419.0,62418.0,1.99166898]
[1719497689080,0.00084,62419.0,62418.0,2.31208898]
[1719497690387,0.00084,62419.0,62418.0,2.32608898]
[1719497691192,0.00075946,62419.0,62418.0,2.32608898]
[1719497691938,0.00075946,62419.0,62418.0,2.33401523]
[1719497692113,0.00075946,62419.0,62418.0,2.34801523]
[1719497694642,0.00075946,62419.0,62418.0,2.34811523]
[1719497696238,0.1,62435.0,62432.0,0.5537]
[1719497696443,0.1,62436.0,62434.0,0.16233898]
[1719497696620,0.23084,62442.0,62436.0,0.2]
[1719497696621,0.1,62441.0,62436.0,0.2]
[1719497696811,0.00084,62442.0,62438.0,0.2]
[1719497697010,0.00084,62442.0,62439.0,0.02620262]
[1719497697251,0.00084,62442.0,62441.0,0.569]
[1719497697474,0.00084,62442.0,62441.0,1.1503]
[1719497698317,0.00084,62442.0,62441.0,1.67278998]
[1719497698491,0.00084,62442.0,62441.0,1.99309198]
[1719497698875,0.00084,62442.0,62441.0,2.31339398]
[1719497699691,0.00084,62442.0,62441.0,2.31939398]
[1719497700672,0.00084,62442.0,62441.0,2.63969598]
[1719497701411,0.05836,62451.0,62450.0,0.929128]
[1719497701644,0.05836,62451.0,62450.0,1.52563898]
[1719497701861,0.05836,62451.0,62450.0,2.32627898]
[1719497702416,0.0084,62453.0,62452.0,1.1]
[1719497702669,0.00841,62458.0,62457.0,0.92911]
[1719497702982,0.00841,62464.0,62461.0,1.580298]
[1719497703195,0.00841,62464.0,62461.0,2.79373598]
[1719497703400,0.00841,62464.0,62461.0,1.81623898]
[1719497703841,0.00841,62464.0,62461.0,2.01623898]
[1719497704042,0.00841,62464.0,62461.0,1.34723898]
[1719497704221,0.00841,62464.0,62461.0,1.51623898]
[1719497706032,0.0002,62477.0,62467.0,1.3467]
[1719497706194,0.0002,62477.0,62476.0,0.569]
[1719497706397,0.0002,62477.0,62476.0,1.50903898]
[1719497706652,0.0002,62477.0,62476.0,1.53203898]
[1719497707591,0.0002,62477.0,62476.0,1.33203898]
[1719497707793,0.0002,62477.0,62476.0,1.16303898]
[1719497708008,0.0002,62477.0,62476.0,0.18533898]
[1719497708132,0.0002,62477.0,62476.0,0.38533898]
[1719497708339,0.0002,62477.0,62476.0,0.16233898]
[1719497708543,0.2302,62477.0,62476.0,0.16233898]
[1719497708867,0.1002,62477.0,62476.0,0.16233898]
[1719497709049,0.1002,62477.0,62476.0,0.36233898]
[1719497709240,0.1002,62477.0,62476.0,0.17633898]
[1719497709681,0.1002,62477.0,62476.0,0.16233898]
[1719497710095,0.0002,62477.0,62476.0,0.17433898]
[1719497710295,0.820675,62477.0,62476.0,0.17433898]
[1719497710500,1.240792,62477.0,62476.0,0.18833898]
[1719497710963,1.240792,62477.0,62476.0,0.17433898]
[1719497711369,0.920675,62477.0,62476.0,0.17433898]
[1719497711527,0.900775,62477.0,62476.0,0.17433898]
[1719497711720,0.580658,62477.0,62476.0,0.17433898]
[1719497711925,0.580658,62477.0,62476.0,0.18833898]
[1719497711926,0.2868,62477.0,62476.0,0.18833898]
[1719497712148,0.3302,62477.0,62476.0,0.18833898]
[1719497712311,0.3302,62477.0,62476.0,0.17633898]
[1719497712729,0.1002,62477.0,62476.0,0.62483898]
[1719497712935,0.1002,62477.0,62476.0,0.70054123]
[1719497713143,0.1002,62477.0,62476.0,1.45204123]
[1719497713350,0.1002,62477.0,62476.0,1.30217823]
[1719497713556,0.1012,62477.0,62476.0,1.22647598]
[1719497713844,0.1012,62477.0,62476.0,1.23547598]
[1719497714071,0.1002,62477.0,62476.0,1.23547598]
[1719497714244,0.580375,62477.0,62476.0,1.16233898]
[1719497714456,0.600275,62477.0,62476.0,1.16233898]
[1719497714774,0.920392,62477.0,62476.0,1.17533898]
[1719497714947,1.427109,62477.0,62476.0,1.17533898]
[1719497715152,1.427109,62477.0,62476.0,1.013]
[1719497715350,1.747226,62477.0,62476.0,1.013]
[1719497715564,1.757226,62477.0,62476.0,1.016]
[1719497716179,1.747226,62477.0,62476.0,1.013]
[1719497716515,1.759226,62477.0,62476.0,1.014]
[1719497717176,1.760066,62477.0,62476.0,1.001]
[1719497717662,1.893866,62477.0,62476.0,1.011]
[1719497717892,1.893866,62477.0,62476.0,1.001]
[1719497720390,1.883866,62477.0,62476.0,1.001]
[1719497720639,2.113866,62477.0,62476.0,1.001]
[1719497720872,1.883866,62477.0,62476.0,1.001]
[1719497721093,2.113866,62477.0,62476.0,1.001]
[1719497721535,2.123866,62477.0,62476.0,1.001]
[1719497721727,2.113866,62477.0,62476.0,1.001]
[1719497721956,2.123866,62477.0,62476.0,1.001]
[1719497724893,2.123866,62477.0,62476.0,1.00190486]
[1719497725861,2.123866,62477.0,62476.0,1.00308747]
[1719497726668,0.170056,62478.0,62477.0,97.876134]
[1719497726891,1.590392,62478.0,62477.0,97.876134]
[1719497727209,1.910504,62478.0,62477.0,97.876134]
[1719497727413,3.47540069,62478.0,62477.0,97.876134]
[1719497727702,3.37266974,62478.0,62477.0,97.876134]
[1719497727937,3.37266974,62478.0,62477.0,197.876134]
[1719497728151,4.17595074,62478.0,62477.0,191.85241585]
[1719497728522,4.19772321,62478.0,62477.0,191.85241585]
[1719497728722,3.83772321,62478.0,62477.0,191.85241585]
[1719497728866,4.29772321,62478.0,62477.0,191.85241585]
[1719497729163,4.46005692,62478.0,62477.0,191.85241585]
[1719497729363,2.69076,62477.0,62476.0,1.00208747]
[1719497729564,2.97609898,62477.0,62476.0,1.00208747]
[1719497729765,2.6741247,62477.0,62476.0,1.00208747]
[1719497730005,2.6511247,62477.0,62476.0,1.00208747]
[1719497730185,2.6811247,62477.0,62476.0,1.00208747]
[1719497730387,1.860643,62477.0,62476.0,1.00208747]
[1719497730768,1.869643,62477.0,62476.0,1.00308747]
[1719497731004,1.549526,62477.0,62476.0,1.00408747]
[1719497731163,1.545526,62477.0,62476.0,1.00308747]
[1719497732417,1.225409,62477.0,62476.0,1.00308747]
[1719497732623,1.237409,62477.0,62476.0,1.00408747]
[1719497732806,1.237409,62477.0,62476.0,0.99694443]
[1719497733227,1.237409,62477.0,62476.0,0.99494443]
[1719497733228,1.539526,62477.0,62476.0,0.99494443]
[1719497733731,1.556526,62477.0,62476.0,0.99594443]
[1719497734181,1.556526,62477.0,62476.0,0.99494443]
[1719497734182,1.539526,62477.0,62476.0,0.99494443]
[1719497734566,1.556526,62477.0,62476.0,0.99594443]
[1719497735088,0.870228,62478.0,62477.0,98.446474]
[1719497735265,1.71273498,62478.0,62477.0,98.446474]
[1719497735466,2.03284698,62478.0,62477.0,98.446474]
[1719497735628,2.90307498,62478.0,62477.0,98.446474]
[1719497735833,2.9455944,62478.0,62477.0,98.446474]
[1719497736031,1.320409,62477.0,62476.0,0.98673386]
[1719497736229,2.12298198,62477.0,62476.0,0.98673386]
[1719497736432,1.440526,62477.0,62476.0,0.98673386]
[1719497736670,1.443526,62477.0,62476.0,0.98773386]
[1719497736854,1.440526,62477.0,62476.0,0.98673386]
[1719497737074,1.960643,62477.0,62476.0,0.98673386]
[1719497737275,2.54334141,62477.0,62476.0,0.98673386]
[1719497737450,2.72639941,62477.0,62476.0,0.98673386]
[1719497737792,2.5640657,62477.0,62476.0,0.98673386]
[1719497737934,2.8841827,62477.0,62476.0,0.98673386]
[1719497738877,2.9001827,62477.0,62476.0,0.98873386]
[1719497739043,3.7004767,62477.0,62476.0,0.95672186]
[1719497739245,2.38905272,62469.0,62468.0,0.000924]
[1719497739445,0.160135,62447.0,62446.0,0.46269912]
[1719497739666,1.450948,62447.0,62446.0,0.46269912]
[1719497739867,0.800755,62441.0,62440.0,0.09197428]
[1719497740065,1.130755,62441.0,62440.0,0.09197428]
[1719497740276,0.80078,62439.0,62438.0,0.09197428]
[1719497740516,1.221092,62439.0,62438.0,0.09197428]
[1719497740896,1.121165,62435.0,62434.0,0.08130346]
[1719497741098,1.221165,62435.0,62434.0,0.17327774]
[1719497741498,1.221165,62435.0,62434.0,0.37327774]
[1719497741787,1.221165,62435.0,62434.0,0.55561672]
[1719497741788,0.900832,62435.0,62434.0,0.55561672]
[1719497742445,0.1,62435.0,62434.0,0.55561672]
[1719497742604,0.23,62439.0,62438.0,0.31197428]
[1719497742803,0.710468,62439.0,62438.0,0.09197428]
[1719497743032,0.390156,62439.0,62438.0,0.09197428]
[1719497743232,0.870624,62439.0,62438.0,0.09197428]
[1719497743435,1.03078,62439.0,62438.0,0.29197428]
[1719497743602,1.351092,62439.0,62438.0,0.09197428]
[1719497743994,0.160161,62437.0,62436.0,0.29197428]
[1719497744223,0.480483,62437.0,62436.0,0.29197428]